[Event "*** Titled Tuesday Blitz"]
[Site "Chess.com"]
[Date "2020.05.26"]
[Round "6"]
[White "anon569"]
[Black "Arjun2002"]
[Result "0-1"]
[WhiteElo "2289"]
[BlackElo "2665"]
[TimeControl "180+1"]
[EndTime "11:06:41 PDT"]
[Termination "Arjun2002 won on time"]

1. e4 {[%clk 0:03:00.9]} 1... c5 {[%clk 0:02:59.9]} 2. Nf3 {[%clk 0:03:00.7]}
2... Nc6 {[%clk 0:02:59.9]} 3. d4 {[%clk 0:03:00.2]} 3... cxd4 {[%clk
0:03:00.8]} 4. Nxd4 {[%clk 0:03:00.7]} 4... Nf6 {[%clk 0:03:01.3]} 5. Nc3 {[%clk
0:03:01.2]} 5... d6 {[%clk 0:03:01.2]} 6. Bg5 {[%clk 0:03:01]} 6... e6 {[%clk
0:03:01.1]} 7. Qd2 {[%clk 0:03:01.1]} 7... a6 {[%clk 0:03:01.4]} 8. O-O-O {[%clk
0:02:59.7]} 8... Be7 {[%clk 0:03:01.7]} 9. f4 {[%clk 0:02:57.4]} 9... Bd7 {[%clk
0:03:01.7]} 10. Nf3 {[%clk 0:02:57.2]} 10... b5 {[%clk 0:03:00.3]} 11. e5 {[%clk
0:02:57.6]} 11... b4 {[%clk 0:02:59.5]} 12. exf6 {[%clk 0:02:57.8]} 12... bxc3
{[%clk 0:02:59.7]} 13. Qxc3 {[%clk 0:02:56.8]} 13... gxf6 {[%clk 0:03:00.1]} 14.
Kb1 {[%clk 0:02:37.4]} 14... d5 {[%clk 0:02:58.5]} 15. Bh4 {[%clk 0:02:22.5]}
15... Rg8 {[%clk 0:02:58.1]} 16. f5 {[%clk 0:02:18.8]} 16... Nb4 {[%clk
0:02:33]} 17. fxe6 {[%clk 0:01:33.3]} 17... fxe6 {[%clk 0:02:32.5]} 18. Qe3
{[%clk 0:01:28.6]} 18... Rb8 {[%clk 0:01:50.8]} 19. a3 {[%clk 0:00:28.1]} 19...
Nc6 {[%clk 0:01:49]} 20. Be2 {[%clk 0:00:25.2]} 20... Qa5 {[%clk 0:01:44.7]} 21.
Ka1 {[%clk 0:00:21.8]} 21... e5 {[%clk 0:01:40.5]} 22. Nd2 {[%clk 0:00:16.9]}
22... Nd4 {[%clk 0:01:34.5]} 23. Rc1 {[%clk 0:00:09.6]} 23... Bf5 {[%clk
0:01:08.1]} 24. Nb3 {[%clk 0:00:07.6]} 24... Rxb3 {[%clk 0:00:56.6]} 25. cxb3
{[%clk 0:00:08.3]} 25... Bxa3 {[%clk 0:00:56.6]} 0-1

[Event "*** Titled Tuesday Blitz"]
[Site "Chess.com"]
[Date "2020.05.26"]
[Round "6"]
[White "ShahMatKanal"]
[Black "Mikhail_Biryukov"]
[Result "1-0"]
[WhiteElo "2474"]
[BlackElo "2629"]
[TimeControl "180+1"]
[EndTime "11:06:42 PDT"]
[Termination "ShahMatKanal won by resignation"]

1. d4 {[%clk 0:02:55.6]} 1... Nf6 {[%clk 0:02:59.1]} 2. c4 {[%clk 0:02:54.3]}
2... e6 {[%clk 0:02:59.7]} 3. a3 {[%clk 0:02:53.8]} 3... d5 {[%clk 0:02:53.5]}
4. cxd5 {[%clk 0:02:53.3]} 4... exd5 {[%clk 0:02:54.4]} 5. Nc3 {[%clk
0:02:53.5]} 5... c5 {[%clk 0:02:54.6]} 6. Nf3 {[%clk 0:02:50.6]} 6... Nc6 {[%clk
0:02:54.2]} 7. e3 {[%clk 0:02:36.9]} 7... Bg4 {[%clk 0:02:53.3]} 8. Be2 {[%clk
0:02:34.9]} 8... cxd4 {[%clk 0:02:41.3]} 9. Nxd4 {[%clk 0:02:33.5]} 9... Bxe2
{[%clk 0:02:41.9]} 10. Ndxe2 {[%clk 0:02:18.9]} 10... Bd6 {[%clk 0:02:39.2]} 11.
Ng3 {[%clk 0:02:10.6]} 11... O-O {[%clk 0:02:37.2]} 12. O-O {[%clk 0:02:10.4]}
12... Bc7 {[%clk 0:02:33.3]} 13. Nb5 {[%clk 0:02:01.4]} 13... Be5 {[%clk
0:02:30.7]} 14. Rb1 {[%clk 0:01:41.6]} 14... a6 {[%clk 0:02:26.4]} 15. Nd4
{[%clk 0:01:41.7]} 15... Nxd4 {[%clk 0:02:26.5]} 16. exd4 {[%clk 0:01:42]} 16...
Bxg3 {[%clk 0:02:27.1]} 17. fxg3 {[%clk 0:01:38.3]} 17... Ne4 {[%clk 0:02:26.4]}
18. Bf4 {[%clk 0:01:29.3]} 18... Qb6 {[%clk 0:02:23.6]} 19. h4 {[%clk
0:01:19.3]} 19... Rac8 {[%clk 0:02:22.5]} 20. Kh2 {[%clk 0:01:19.1]} 20... Rc4
{[%clk 0:02:21.7]} 21. Be5 {[%clk 0:01:17.5]} 21... f6 {[%clk 0:02:20.9]} 22. b3
{[%clk 0:01:13.6]} 22... Rcc8 {[%clk 0:02:15.4]} 23. Bf4 {[%clk 0:01:10.7]}
23... Nc3 {[%clk 0:02:15.6]} 24. Qh5 {[%clk 0:01:08.6]} 24... Nxb1 {[%clk
0:02:10.6]} 25. Qxd5+ {[%clk 0:01:08.2]} 25... Kh8 {[%clk 0:02:10.8]} 26. Rxb1
{[%clk 0:01:08.7]} 26... Rfd8 {[%clk 0:02:10.8]} 27. Qf7 {[%clk 0:01:03.7]}
27... Rc2 {[%clk 0:01:47.8]} 28. Re1 {[%clk 0:00:54.6]} 28... h6 {[%clk
0:01:22.8]} 29. Re8+ {[%clk 0:00:50]} 29... Kh7 {[%clk 0:01:22.6]} 30. h5 {[%clk
0:00:37.7]} 30... Rxe8 {[%clk 0:01:21.3]} 31. Qg6+ {[%clk 0:00:37.5]} 31... Kg8
{[%clk 0:01:12.9]} 32. Qxe8+ {[%clk 0:00:38.4]} 32... Kh7 {[%clk 0:01:11.1]} 33.
Qe4+ {[%clk 0:00:38.2]} 33... Kg8 {[%clk 0:01:11.3]} 34. Qxc2 {[%clk 0:00:37.9]}
34... Qxd4 {[%clk 0:01:11.5]} 35. Qc8+ {[%clk 0:00:35.7]} 35... Kh7 {[%clk
0:01:10]} 36. Qxb7 {[%clk 0:00:35.6]} 36... Qc5 {[%clk 0:01:09.6]} 37. Qe4+
{[%clk 0:00:23.1]} 37... Kg8 {[%clk 0:01:09]} 38. Qc4+ {[%clk 0:00:21]} 1-0

[Event "*** Titled Tuesday Blitz"]
[Site "Chess.com"]
[Date "2020.05.26"]
[Round "6"]
[White "penguingm1"]
[Black "Quaternitychess"]
[Result "1-0"]
[WhiteElo "2881"]
[BlackElo "2804"]
[TimeControl "180+1"]
[EndTime "11:06:46 PDT"]
[Termination "penguingm1 won on time"]

1. d4 {[%clk 0:03:00.9]} 1... d5 {[%clk 0:02:59.5]} 2. Bf4 {[%clk 0:03:01]} 2...
c5 {[%clk 0:02:58.7]} 3. e3 {[%clk 0:03:01.4]} 3... Nc6 {[%clk 0:02:59]} 4. Nf3
{[%clk 0:03:01.6]} 4... Bg4 {[%clk 0:02:53]} 5. Nbd2 {[%clk 0:02:53]} 5... e6
{[%clk 0:02:51.9]} 6. c3 {[%clk 0:02:36.7]} 6... cxd4 {[%clk 0:02:50.9]} 7. exd4
{[%clk 0:02:31.3]} 7... Bd6 {[%clk 0:02:50.4]} 8. Bxd6 {[%clk 0:02:29.2]} 8...
Qxd6 {[%clk 0:02:50.3]} 9. Be2 {[%clk 0:02:28.6]} 9... Nf6 {[%clk 0:02:46.3]}
10. O-O {[%clk 0:02:29]} 10... O-O {[%clk 0:02:46]} 11. Re1 {[%clk 0:02:29.4]}
11... Rab8 {[%clk 0:02:43.4]} 12. a4 {[%clk 0:02:29.6]} 12... a6 {[%clk
0:02:43]} 13. Ne5 {[%clk 0:02:30.1]} 13... Bxe2 {[%clk 0:02:41.5]} 14. Qxe2
{[%clk 0:02:31]} 14... Qc7 {[%clk 0:02:41.6]} 15. Nd3 {[%clk 0:02:31.1]} 15...
Rfe8 {[%clk 0:02:34.6]} 16. h4 {[%clk 0:02:29.7]} 16... h5 {[%clk 0:02:12.8]}
17. Qf3 {[%clk 0:02:29.6]} 17... Ng4 {[%clk 0:02:10.1]} 18. g3 {[%clk
0:02:29.1]} 18... g6 {[%clk 0:02:06.6]} 19. Re2 {[%clk 0:02:28.7]} 19... e5
{[%clk 0:01:40]} 20. Rae1 {[%clk 0:01:32.1]} 20... e4 {[%clk 0:01:38.2]} 21. Qf4
{[%clk 0:01:30.6]} 21... Qd7 {[%clk 0:00:35.5]} 22. Nc5 {[%clk 0:01:26.1]} 22...
Qf5 {[%clk 0:00:35.6]} 23. f3 {[%clk 0:01:09.5]} 23... Qxf4 {[%clk 0:00:35]} 24.
gxf4 {[%clk 0:01:09.9]} 24... e3 {[%clk 0:00:35.4]} 25. Nf1 {[%clk 0:01:03.1]}
25... Nf6 {[%clk 0:00:35.5]} 26. Nxe3 {[%clk 0:01:01]} 26... Kg7 {[%clk
0:00:30.8]} 27. Kf2 {[%clk 0:00:58.5]} 27... a5 {[%clk 0:00:30.4]} 28. Nd3
{[%clk 0:00:51.5]} 1-0

[Event "*** Titled Tuesday Blitz"]
[Site "Chess.com"]
[Date "2020.05.26"]
[Round "6"]
[White "MasterKroket"]
[Black "PavelChernomordik"]
[Result "0-1"]
[WhiteElo "2403"]
[BlackElo "2238"]
[TimeControl "180+1"]
[EndTime "11:06:48 PDT"]
[Termination "PavelChernomordik won by checkmate"]

1. d4 {[%clk 0:03:00.9]} 1... g6 {[%clk 0:03:00]} 2. c4 {[%clk 0:03:00.5]} 2...
Bg7 {[%clk 0:03:00.4]} 3. Nf3 {[%clk 0:03:01.2]} 3... d6 {[%clk 0:03:00]} 4. Nc3
{[%clk 0:03:00.9]} 4... Nc6 {[%clk 0:03:00.1]} 5. e4 {[%clk 0:02:37.1]} 5... Bg4
{[%clk 0:02:56.6]} 6. Be3 {[%clk 0:02:35.4]} 6... Bxf3 {[%clk 0:02:55.7]} 7.
gxf3 {[%clk 0:02:35]} 7... e5 {[%clk 0:02:55.7]} 8. d5 {[%clk 0:02:30.1]} 8...
Nd4 {[%clk 0:02:55.3]} 9. Be2 {[%clk 0:02:16.6]} 9... c5 {[%clk 0:02:52.3]} 10.
dxc6 {[%clk 0:02:15.9]} 10... bxc6 {[%clk 0:02:51.9]} 11. Qa4 {[%clk 0:01:59.7]}
11... Ne7 {[%clk 0:02:50.1]} 12. Nd5 {[%clk 0:01:49.4]} 12... O-O {[%clk
0:02:39.5]} 13. Nxe7+ {[%clk 0:01:48.1]} 13... Qxe7 {[%clk 0:02:38.7]} 14. Bxd4
{[%clk 0:01:40.3]} 14... exd4 {[%clk 0:02:37.9]} 15. Qxc6 {[%clk 0:01:41]} 15...
d3 {[%clk 0:02:35.5]} 16. Bxd3 {[%clk 0:01:40.6]} 16... Bxb2 {[%clk 0:02:34.9]}
17. Rb1 {[%clk 0:01:40.3]} 17... Bc3+ {[%clk 0:02:34.2]} 18. Ke2 {[%clk
0:01:40.9]} 18... Qg5 {[%clk 0:02:32.8]} 19. Rhd1 {[%clk 0:01:33]} 19... Qf4
{[%clk 0:02:28.2]} 20. Rb7 {[%clk 0:01:16.7]} 20... Qxh2 {[%clk 0:02:23.4]} 21.
Bc2 {[%clk 0:01:07.2]} 21... Be5 {[%clk 0:02:18.8]} 22. Qd5 {[%clk 0:01:04]}
22... Rab8 {[%clk 0:02:01.9]} 23. Rdb1 {[%clk 0:01:02.7]} 23... Rxb7 {[%clk
0:01:59.4]} 24. Rxb7 {[%clk 0:01:03.6]} 24... Bg3 {[%clk 0:01:58.6]} 25. Qd4
{[%clk 0:01:02.4]} 25... h5 {[%clk 0:01:57.9]} 26. Bb3 {[%clk 0:00:59.8]} 26...
Be5 {[%clk 0:01:49.9]} 27. Qxa7 {[%clk 0:00:56.6]} 27... Qf4 {[%clk 0:01:49.7]}
28. Qe3 {[%clk 0:00:42.7]} 28... Qf6 {[%clk 0:01:48.2]} 29. a4 {[%clk
0:00:35.3]} 29... h4 {[%clk 0:01:44.7]} 30. a5 {[%clk 0:00:34.9]} 30... h3
{[%clk 0:01:43.2]} 31. a6 {[%clk 0:00:34.9]} 31... h2 {[%clk 0:01:39.1]} 32. Qc1
{[%clk 0:00:33.6]} 32... Bf4 {[%clk 0:01:35.3]} 33. Qd1 {[%clk 0:00:20.8]} 33...
Qb2+ {[%clk 0:01:28.7]} 34. Kd3 {[%clk 0:00:21.3]} 34... Be5 {[%clk 0:01:24.6]}
35. a7 {[%clk 0:00:18.4]} 35... Qd4+ {[%clk 0:01:22.7]} 36. Ke2 {[%clk
0:00:17.6]} 36... Qxd1+ {[%clk 0:01:20.3]} 37. Bxd1 {[%clk 0:00:18.5]} 37...
h1=Q {[%clk 0:01:19.1]} 38. Rb8 {[%clk 0:00:19.2]} 38... Bc3 {[%clk 0:01:17.2]}
39. Rxf8+ {[%clk 0:00:17.8]} 39... Kxf8 {[%clk 0:01:17]} 40. a8=Q+ {[%clk
0:00:18.7]} 40... Kg7 {[%clk 0:01:17]} 41. Qa4 {[%clk 0:00:17]} 41... Qe1+
{[%clk 0:01:15]} 42. Kd3 {[%clk 0:00:17.1]} 42... Qd2# {[%clk 0:01:14.7]} 0-1

[Event "*** Titled Tuesday Blitz"]
[Site "Chess.com"]
[Date "2020.05.26"]
[Round "6"]
[White "1g41-0"]
[Black "DishonorOnYourCow"]
[Result "1-0"]
[WhiteElo "2548"]
[BlackElo "2311"]
[TimeControl "180+1"]
[EndTime "11:06:50 PDT"]
[Termination "1g41-0 won by checkmate"]

1. d4 {[%clk 0:03:00.9]} 1... Nf6 {[%clk 0:02:58.2]} 2. c4 {[%clk 0:03:00.6]}
2... g6 {[%clk 0:02:56.6]} 3. Nf3 {[%clk 0:03:00.7]} 3... Bg7 {[%clk 0:02:53.1]}
4. g3 {[%clk 0:03:01.2]} 4... d5 {[%clk 0:02:45.4]} 5. cxd5 {[%clk 0:03:00.7]}
5... Nxd5 {[%clk 0:02:44.3]} 6. Bg2 {[%clk 0:03:01.2]} 6... Nb6 {[%clk 0:02:41]}
7. O-O {[%clk 0:03:01.7]} 7... O-O {[%clk 0:02:40.5]} 8. Nc3 {[%clk 0:03:02.2]}
8... Nc6 {[%clk 0:02:39.1]} 9. d5 {[%clk 0:02:57]} 9... Na5 {[%clk 0:02:33.3]}
10. e4 {[%clk 0:02:52.8]} 10... c6 {[%clk 0:02:26.6]} 11. dxc6 {[%clk
0:02:51.5]} 11... Nxc6 {[%clk 0:02:25.6]} 12. Qe2 {[%clk 0:02:51.2]} 12... Bg4
{[%clk 0:02:23.9]} 13. Rd1 {[%clk 0:02:44.9]} 13... Nd4 {[%clk 0:02:10.7]} 14.
Qe3 {[%clk 0:02:41.7]} 14... Nc4 {[%clk 0:02:00.7]} 15. Rxd4 {[%clk 0:02:41]}
15... Bxd4 {[%clk 0:01:32.7]} 16. Qxd4 {[%clk 0:02:38.6]} 16... Qxd4 {[%clk
0:01:28]} 17. Nxd4 {[%clk 0:02:39.5]} 17... Rfd8 {[%clk 0:01:27.8]} 18. Nc2
{[%clk 0:02:35.1]} 18... Rac8 {[%clk 0:01:07.2]} 19. Ne3 {[%clk 0:02:33.3]}
19... Be6 {[%clk 0:00:57.5]} 20. Nxc4 {[%clk 0:02:31.3]} 20... Bxc4 {[%clk
0:00:55.9]} 21. Be3 {[%clk 0:02:31.9]} 21... b6 {[%clk 0:00:54.5]} 22. Bf1
{[%clk 0:02:30.5]} 22... Bxf1 {[%clk 0:00:34.5]} 23. Kxf1 {[%clk 0:02:31.4]}
23... f6 {[%clk 0:00:35.4]} 24. Ke2 {[%clk 0:02:28]} 24... Kf7 {[%clk
0:00:35.2]} 25. f3 {[%clk 0:02:26.8]} 25... Ke6 {[%clk 0:00:32.5]} 26. a4 {[%clk
0:02:25.4]} 26... Rc4 {[%clk 0:00:24.7]} 27. Ra2 {[%clk 0:01:46.8]} 27... Rb8
{[%clk 0:00:14.6]} 28. h4 {[%clk 0:01:45.2]} 28... a6 {[%clk 0:00:13.5]} 29. Kd3
{[%clk 0:01:44]} 29... Rc7 {[%clk 0:00:09.6]} 30. Nd5 {[%clk 0:01:37.8]} 30...
Rd7 {[%clk 0:00:08.6]} 31. b4 {[%clk 0:01:37.1]} 31... f5 {[%clk 0:00:07.6]} 32.
Ke2 {[%clk 0:01:32.7]} 32... fxe4 {[%clk 0:00:07.4]} 33. fxe4 {[%clk 0:01:33.6]}
33... b5 {[%clk 0:00:06.3]} 34. axb5 {[%clk 0:01:31.1]} 34... axb5 {[%clk
0:00:07.2]} 35. Ra6+ {[%clk 0:01:30.7]} 35... Kf7 {[%clk 0:00:07.5]} 36. Bc5
{[%clk 0:01:27.4]} 36... e6 {[%clk 0:00:06.7]} 37. Nf4 {[%clk 0:01:27]} 37...
Rbd8 {[%clk 0:00:05.2]} 38. Nxe6 {[%clk 0:01:21]} 38... Rd2+ {[%clk 0:00:05.1]}
39. Ke3 {[%clk 0:01:21.5]} 39... R8d3+ {[%clk 0:00:05.5]} 40. Kf4 {[%clk
0:01:22.1]} 40... Re2 {[%clk 0:00:02.5]} 41. Ke5 {[%clk 0:01:17.4]} 41... Rc3
{[%clk 0:00:01.1]} 42. Ng5+ {[%clk 0:01:16.1]} 42... Ke8 {[%clk 0:00:01.2]} 43.
Ke6 {[%clk 0:01:14.4]} 43... Rc4 {[%clk 0:00:02.1]} 44. Ra8# {[%clk 0:01:14.2]}
1-0

[Event "*** Titled Tuesday Blitz"]
[Site "Chess.com"]
[Date "2020.05.26"]
[Round "6"]
[White "Nikolaj_6"]
[Black "Leo_C"]
[Result "1/2-1/2"]
[WhiteElo "2502"]
[BlackElo "2275"]
[TimeControl "180+1"]
[EndTime "11:06:50 PDT"]
[Termination "Game drawn by agreement"]

1. e4 {[%clk 0:03:00.9]} 1... c6 {[%clk 0:02:59.1]} 2. d4 {[%clk 0:03:00.7]}
2... d5 {[%clk 0:02:59.3]} 3. e5 {[%clk 0:03:01.1]} 3... c5 {[%clk 0:02:58.8]}
4. dxc5 {[%clk 0:03:00.8]} 4... e6 {[%clk 0:02:58.8]} 5. a3 {[%clk 0:03:00.6]}
5... Bxc5 {[%clk 0:02:58.6]} 6. Qg4 {[%clk 0:03:00.4]} 6... Ne7 {[%clk
0:02:56.1]} 7. b4 {[%clk 0:02:59.7]} 7... Bb6 {[%clk 0:02:55]} 8. Bd3 {[%clk
0:02:59]} 8... Ng6 {[%clk 0:02:53]} 9. Nf3 {[%clk 0:02:57.2]} 9... Nd7 {[%clk
0:02:52.8]} 10. Bb2 {[%clk 0:02:56.5]} 10... Bc7 {[%clk 0:02:52.7]} 11. O-O
{[%clk 0:02:53.1]} 11... O-O {[%clk 0:02:51]} 12. Bxg6 {[%clk 0:02:45.7]} 12...
hxg6 {[%clk 0:02:49.5]} 13. Nbd2 {[%clk 0:02:44.9]} 13... a5 {[%clk 0:02:45.8]}
14. c4 {[%clk 0:02:41.7]} 14... dxc4 {[%clk 0:02:43.9]} 15. Nxc4 {[%clk
0:02:41.3]} 15... axb4 {[%clk 0:02:43.9]} 16. axb4 {[%clk 0:02:40.9]} 16... Rxa1
{[%clk 0:02:44.1]} 17. Bxa1 {[%clk 0:02:41.1]} 17... Qe7 {[%clk 0:02:44.1]} 18.
Ng5 {[%clk 0:02:34.8]} 18... Rd8 {[%clk 0:02:34.6]} 19. Bc3 {[%clk 0:02:32.5]}
19... Nf8 {[%clk 0:02:33.1]} 20. Ne4 {[%clk 0:02:22]} 20... Bd7 {[%clk
0:02:26.7]} 21. Ncd6 {[%clk 0:02:18.3]} 21... Bc6 {[%clk 0:02:23.1]} 22. h4
{[%clk 0:02:11.1]} 22... Bxe4 {[%clk 0:02:18.6]} 23. Nxe4 {[%clk 0:02:09.1]}
23... Nd7 {[%clk 0:02:09.5]} 24. Qg3 {[%clk 0:01:47.8]} 24... Nb6 {[%clk
0:01:59.5]} 25. h5 {[%clk 0:01:47.3]} 25... gxh5 {[%clk 0:01:52.3]} 26. Nf6+
{[%clk 0:01:47.1]} 26... Qxf6 {[%clk 0:01:41.3]} 27. exf6 {[%clk 0:01:45.4]}
27... Bxg3 {[%clk 0:01:39.9]} 28. fxg3 {[%clk 0:01:45.8]} 28... Nd5 {[%clk
0:01:38.5]} 29. Bb2 {[%clk 0:01:29]} 29... gxf6 {[%clk 0:01:35.3]} 30. Bxf6
{[%clk 0:01:28.8]} 30... Nxf6 {[%clk 0:01:35]} 31. Rxf6 {[%clk 0:01:28.9]} 31...
Rd4 {[%clk 0:01:34.3]} 32. Rh6 {[%clk 0:01:27]} 32... Rd5 {[%clk 0:01:27.5]} 33.
Rf6 {[%clk 0:01:24.2]} 33... Rd4 {[%clk 0:01:27.4]} 34. Rh6 {[%clk 0:01:22.5]}
34... Rxb4 {[%clk 0:01:16.6]} 35. Rxh5 {[%clk 0:01:22.6]} 35... Rb2 {[%clk
0:01:16.5]} 36. Kh2 {[%clk 0:01:20.5]} 36... Kg7 {[%clk 0:01:16.3]} 37. Rc5
{[%clk 0:01:20.2]} 37... b5 {[%clk 0:01:16.2]} 38. g4 {[%clk 0:01:20]} 38... b4
{[%clk 0:01:15.8]} 39. Rb5 {[%clk 0:01:19.9]} 39... Kg6 {[%clk 0:01:14.7]} 40.
Kg3 {[%clk 0:01:19.7]} 40... b3 {[%clk 0:01:13.9]} 41. Rb7 {[%clk 0:01:18.6]}
41... Rb1 {[%clk 0:01:13.4]} 42. Rb6 {[%clk 0:01:18]} 42... Kf6 {[%clk
0:01:12.9]} 43. Rb5 {[%clk 0:01:17.1]} 43... e5 {[%clk 0:01:08.7]} 44. g5+
{[%clk 0:01:15.4]} 44... Kxg5 {[%clk 0:01:06.8]} 45. Rxe5+ {[%clk 0:01:15.4]}
45... Kf6 {[%clk 0:01:06.8]} 46. Rb5 {[%clk 0:01:15.3]} 46... Ke6 {[%clk
0:01:07]} 47. Kg4 {[%clk 0:01:14.9]} 47... Kd6 {[%clk 0:01:06.3]} 48. Rb7 {[%clk
0:01:13.3]} 48... b2 {[%clk 0:01:01.9]} 49. Kg3 {[%clk 0:01:08.9]} 49... Ke5
{[%clk 0:00:58.8]} 50. Kh2 {[%clk 0:01:05.1]} 50... Ke4 {[%clk 0:00:55.9]} 51.
Rb8 {[%clk 0:01:04.2]} 51... Ke3 {[%clk 0:00:55.7]} 52. Rb7 {[%clk 0:01:03.9]}
52... Kd2 {[%clk 0:00:54.1]} 53. Rd7+ {[%clk 0:01:03.4]} 53... Ke1 {[%clk
0:00:53.2]} 54. Re7+ {[%clk 0:01:01.6]} 1/2-1/2

[Event "*** Titled Tuesday Blitz"]
[Site "Chess.com"]
[Date "2020.05.26"]
[Round "6"]
[White "aNaartjieZA"]
[Black "Aleksandar-Topalov"]
[Result "0-1"]
[WhiteElo "2574"]
[BlackElo "2388"]
[TimeControl "180+1"]
[EndTime "11:06:51 PDT"]
[Termination "Aleksandar-Topalov won by resignation"]

1. e4 {[%clk 0:03:00.9]} 1... e6 {[%clk 0:02:59.7]} 2. d3 {[%clk 0:03:00.8]}
2... d5 {[%clk 0:02:58.1]} 3. Nd2 {[%clk 0:03:01.2]} 3... Nf6 {[%clk 0:02:57.8]}
4. Ngf3 {[%clk 0:02:57.7]} 4... c5 {[%clk 0:02:56.9]} 5. g3 {[%clk 0:02:57.5]}
5... Be7 {[%clk 0:02:57.3]} 6. Bg2 {[%clk 0:02:57.6]} 6... O-O {[%clk
0:02:57.9]} 7. O-O {[%clk 0:02:58.2]} 7... Nc6 {[%clk 0:02:58.3]} 8. Re1 {[%clk
0:02:58.6]} 8... b5 {[%clk 0:02:58]} 9. e5 {[%clk 0:02:58.6]} 9... Nd7 {[%clk
0:02:57.4]} 10. Nf1 {[%clk 0:02:59.3]} 10... a5 {[%clk 0:02:57.5]} 11. h4 {[%clk
0:02:59.4]} 11... b4 {[%clk 0:02:57.7]} 12. N1h2 {[%clk 0:02:57.9]} 12... Ba6
{[%clk 0:02:55.9]} 13. Bf4 {[%clk 0:02:55.4]} 13... a4 {[%clk 0:02:55.8]} 14. a3
{[%clk 0:02:55]} 14... Bb5 {[%clk 0:02:55.5]} 15. Ng5 {[%clk 0:02:54.3]} 15...
Qe8 {[%clk 0:02:54.6]} 16. Qg4 {[%clk 0:02:51.4]} 16... Nd4 {[%clk 0:02:47.6]}
17. Rec1 {[%clk 0:02:45.6]} 17... b3 {[%clk 0:02:46.2]} 18. c3 {[%clk
0:02:45.7]} 18... Nc2 {[%clk 0:02:40.1]} 19. Bf1 {[%clk 0:02:43.2]} 19... Nxa1
{[%clk 0:02:38.9]} 20. Rxa1 {[%clk 0:02:42.3]} 20... Ra6 {[%clk 0:02:20.9]} 21.
Qd1 {[%clk 0:02:21.5]} 21... f6 {[%clk 0:02:15.6]} 22. exf6 {[%clk 0:02:21.2]}
22... Bxf6 {[%clk 0:02:15.9]} 23. d4 {[%clk 0:02:19.3]} 23... Bxf1 {[%clk
0:02:08.5]} 24. Qxf1 {[%clk 0:02:18.9]} 24... Rb6 {[%clk 0:02:02]} 25. dxc5
{[%clk 0:02:15.1]} 25... Nxc5 {[%clk 0:01:57.9]} 26. Be3 {[%clk 0:02:14.9]}
26... Rc6 {[%clk 0:01:46.2]} 27. Qb5 {[%clk 0:02:13.8]} 27... Bxg5 {[%clk
0:01:44.3]} 28. Bxc5 {[%clk 0:02:11.4]} 28... Rxc5 {[%clk 0:01:30.9]} 29. Qxc5
{[%clk 0:02:10.4]} 29... Bf6 {[%clk 0:01:31.5]} 30. Re1 {[%clk 0:02:08.7]} 30...
Qd7 {[%clk 0:01:30.8]} 31. Nf3 {[%clk 0:02:06.5]} 31... Rc8 {[%clk 0:01:30.3]}
32. Qe3 {[%clk 0:02:06.2]} 32... d4 {[%clk 0:01:06.7]} 33. Nxd4 {[%clk
0:02:01.8]} 33... Bxd4 {[%clk 0:01:06.7]} 34. cxd4 {[%clk 0:02:02]} 34... Rc2
{[%clk 0:01:06.2]} 35. Rb1 {[%clk 0:01:44.1]} 35... Qd5 {[%clk 0:01:02.8]} 36.
Qf4 {[%clk 0:01:42.2]} 36... h6 {[%clk 0:00:57.8]} 37. Qb8+ {[%clk 0:01:35]}
37... Kh7 {[%clk 0:00:57]} 38. Qb4 {[%clk 0:01:33.7]} 38... Qf3 {[%clk
0:00:53.9]} 39. Rf1 {[%clk 0:01:31.5]} 39... Rxb2 {[%clk 0:00:52.9]} 40. Qxa4
{[%clk 0:01:31.7]} 40... Re2 {[%clk 0:00:48.9]} 41. Qb4 {[%clk 0:01:27.9]} 41...
b2 {[%clk 0:00:46.9]} 42. a4 {[%clk 0:01:27.9]} 42... Qd3 {[%clk 0:00:31.1]} 43.
a5 {[%clk 0:01:08.7]} 43... Rc2 {[%clk 0:00:30.9]} 44. Kg2 {[%clk 0:01:07.5]}
44... Rc1 {[%clk 0:00:27.7]} 0-1

[Event "*** Titled Tuesday Blitz"]
[Site "Chess.com"]
[Date "2020.05.26"]
[Round "6"]
[White "czasnaszachy"]
[Black "politeplayer"]
[Result "0-1"]
[WhiteElo "2334"]
[BlackElo "2182"]
[TimeControl "180+1"]
[EndTime "11:06:51 PDT"]
[Termination "politeplayer won by checkmate"]

1. d4 {[%clk 0:02:52.8]} 1... Nf6 {[%clk 0:02:59.2]} 2. c4 {[%clk 0:02:51.7]}
2... c5 {[%clk 0:02:58.4]} 3. d5 {[%clk 0:02:48.6]} 3... e6 {[%clk 0:02:58.2]}
4. Nc3 {[%clk 0:02:47.8]} 4... g6 {[%clk 0:02:56.1]} 5. e4 {[%clk 0:02:46.6]}
5... d6 {[%clk 0:02:54.6]} 6. f3 {[%clk 0:02:46.2]} 6... exd5 {[%clk 0:02:53.7]}
7. cxd5 {[%clk 0:02:46]} 7... a6 {[%clk 0:02:51.2]} 8. a4 {[%clk 0:02:45.1]}
8... Bg7 {[%clk 0:02:49.9]} 9. Bg5 {[%clk 0:02:44.4]} 9... O-O {[%clk
0:02:45.5]} 10. Qd2 {[%clk 0:02:44.4]} 10... Nbd7 {[%clk 0:02:42]} 11. Nh3
{[%clk 0:02:43.4]} 11... Ne5 {[%clk 0:02:39.8]} 12. Nf2 {[%clk 0:02:40.7]} 12...
c4 {[%clk 0:02:22]} 13. f4 {[%clk 0:02:20.2]} 13... Ned7 {[%clk 0:02:13.6]} 14.
Bxc4 {[%clk 0:02:14.5]} 14... Qc7 {[%clk 0:02:10.2]} 15. Bd3 {[%clk 0:02:06]}
15... Nc5 {[%clk 0:02:02.4]} 16. Bc2 {[%clk 0:02:05.1]} 16... Re8 {[%clk
0:01:48.5]} 17. O-O {[%clk 0:02:01.1]} 17... Rb8 {[%clk 0:01:32.7]} 18. a5
{[%clk 0:01:54.6]} 18... b5 {[%clk 0:01:30.2]} 19. axb6 {[%clk 0:01:53.6]} 19...
Rxb6 {[%clk 0:01:29.9]} 20. Rfb1 {[%clk 0:01:35.9]} 20... Rb4 {[%clk 0:01:27.7]}
21. Na4 {[%clk 0:01:18]} 21... Rbxe4 {[%clk 0:01:11.2]} 22. Nxe4 {[%clk
0:00:50.8]} 22... Ncxe4 {[%clk 0:01:04.2]} 23. Qb4 {[%clk 0:00:21.8]} 23... Nxd5
{[%clk 0:00:55.4]} 24. Qb3 {[%clk 0:00:07.2]} 24... Qa7+ {[%clk 0:00:50.3]} 25.
Kh1 {[%clk 0:00:06.1]} 25... Nf2+ {[%clk 0:00:48.3]} 26. Kg1 {[%clk 0:00:05.9]}
26... Nh3+ {[%clk 0:00:47.9]} 27. Kh1 {[%clk 0:00:04]} 27... Qg1+ {[%clk
0:00:46.8]} 28. Rxg1 {[%clk 0:00:03.4]} 28... Nf2# {[%clk 0:00:46.9]} 0-1